bitfinex/quotes_ETHUSD_20241124
["timestamp","ask_amount","ask_price","bid_price","bid_amount"]
[1732417603596,0.27089502,3425.0,3423.8,0.7663]
[1732417603753,0.7773,3425.2,3423.8,0.7663]
[1732417603951,1.21072066,3425.2,3423.8,0.7663]
[1732417604165,0.27088563,3425.1,3423.8,0.7663]
[1732417604471,2.79305529,3424.9,3423.8,0.7663]
[1732417604681,0.27088563,3424.8,3423.8,0.7663]
[1732417604865,0.27088563,3424.7,3423.8,0.7663]
[1732417605193,0.27088563,3424.6,3423.8,0.7663]
[1732417605393,0.27088563,3424.5,3423.8,0.7663]
[1732417605545,0.27088563,3424.4,3423.8,0.7663]
[1732417605750,0.27088563,3424.3,3423.8,0.7663]
[1732417605994,0.43341702,3424.8,3423.8,0.7663]
[1732417606151,0.27086471,3424.7,3423.8,0.7663]
[1732417606353,0.27086471,3424.6,3423.8,0.7663]
[1732417606653,0.27086471,3424.5,3423.8,0.7663]
[1732417606849,0.27086471,3424.4,3423.8,0.7663]
[1732417607074,0.43341702,3424.8,3423.8,0.7663]
[1732417607270,0.27093866,3424.7,3423.8,0.7663]
[1732417607484,0.27093866,3424.6,3423.8,0.7663]
[1732417607688,0.27093866,3424.5,3423.8,0.7663]
[1732417607986,2.79305529,3424.9,3423.8,0.7663]
[1732417608192,0.27095241,3424.8,3423.8,0.7663]
[1732417608359,0.27095241,3424.7,3423.8,0.7663]
[1732417608559,0.27095241,3424.6,3423.8,0.7663]
[1732417608893,1.21081297,3425.2,3423.8,0.7663]
[1732417609065,0.271001,3425.1,3423.8,0.7663]
[1732417609271,2.79305529,3424.9,3423.8,0.7663]
[1732417609470,0.271001,3424.8,3423.8,0.7663]
[1732417609682,0.271001,3424.7,3423.8,0.7663]
[1732417609854,0.43351297,3424.8,3423.8,0.7663]
[1732417609855,0.271001,3424.6,3423.8,0.7663]
[1732417610058,0.271001,3424.5,3423.8,0.7663]
[1732417610255,0.43351297,3424.8,3423.8,0.7663]
[1732417610500,0.27105126,3424.7,3423.8,0.7663]
[1732417610653,0.27105126,3424.6,3423.8,0.7663]
[1732417610855,0.43351297,3424.8,3423.8,0.7663]
[1732417611155,0.27107254,3424.7,3423.8,0.7663]
[1732417611351,0.27107254,3424.6,3423.8,0.7663]
[1732417611554,2.79305529,3424.9,3423.8,0.7663]
[1732417611790,0.27110038,3424.8,3423.8,0.7663]
[1732417612011,2.79305529,3424.9,3423.8,0.7663]
[1732417612012,0.27110038,3424.7,3423.8,0.7663]
[1732417612170,0.27110038,3424.6,3423.8,0.7663]
[1732417612369,0.4337314,3424.8,3423.8,0.7663]
[1732417612575,0.271084,3424.7,3423.8,0.7663]
[1732417612782,0.271084,3424.6,3423.8,0.7663]
[1732417612980,0.4337314,3424.8,3423.8,0.7663]
[1732417613169,0.27108695,3424.7,3423.8,0.7663]
[1732417613471,0.4337314,3425.2,3423.8,0.7663]
[1732417613667,2.79305529,3425.3,3423.8,0.7663]
[1732417613668,0.27112086,3425.1,3423.8,0.7663]
[1732417614000,0.27112086,3425.0,3423.8,0.7663]
[1732417614158,0.27112086,3424.9,3423.8,0.7663]
[1732417614506,0.27112086,3424.8,3423.8,0.7663]
[1732417614702,0.27112086,3424.7,3423.8,0.7663]
[1732417615003,0.4337314,3425.2,3423.8,0.7663]
[1732417615004,0.27111026,3424.6,3423.8,0.7663]
[1732417615186,0.4337314,3425.2,3423.3,0.02920254]
[1732417615373,2.79305529,3424.9,3423.6,0.8129]
[1732417615699,2.79305529,3424.9,3423.6,0.84210255]
[1732417615700,0.27108407,3424.8,3423.6,0.84210255]
[1732417615874,0.27108407,3424.7,3423.6,0.84210255]
[1732417616203,2.79305529,3424.9,3423.6,0.84210255]
[1732417616204,0.27108407,3424.6,3423.6,0.8129]
[1732417616407,0.27108407,3424.5,3423.6,0.8129]
[1732417616581,0.43371705,3424.8,3423.6,0.8129]
[1732417616780,0.27105401,3424.7,3423.6,0.8129]
[1732417616985,0.27105401,3424.6,3423.6,0.8129]
[1732417617306,0.43371705,3424.8,3423.6,0.84210255]
[1732417617510,0.27102563,3424.7,3423.6,0.84210255]
[1732417617710,0.27102563,3424.6,3423.6,0.84210255]
[1732417618019,3.22662511,3424.9,3423.6,0.84210255]
[1732417618317,0.27095775,3424.8,3423.6,0.8129]
[1732417618479,0.27095775,3424.7,3423.6,0.8129]
[1732417618679,0.27095775,3424.6,3423.6,0.8129]
[1732417618879,2.79305529,3424.9,3423.6,0.8129]
[1732417619087,0.27101517,3424.8,3423.6,0.8129]
[1732417619293,0.27101517,3424.7,3423.6,0.8129]
[1732417619497,2.79305529,3424.9,3423.6,0.8129]
[1732417619811,0.27102217,3424.8,3423.6,0.8129]
[1732417620176,0.27103321,3424.7,3423.6,0.8129]
[1732417620378,0.27103321,3424.6,3423.6,0.8129]
[1732417620613,2.79305529,3424.9,3423.6,0.8129]
[1732417620781,0.27106592,3424.8,3423.6,0.8129]
[1732417621083,0.27106592,3424.7,3423.6,0.8129]
[1732417621283,0.27106592,3424.6,3423.6,0.8129]
[1732417621484,0.43375959,3424.8,3423.6,0.8129]
[1732417621711,0.27111012,3424.7,3423.6,0.8129]
[1732417621982,0.27111012,3424.6,3423.6,0.8129]
[1732417622224,0.43375959,3424.8,3423.6,0.8129]
[1732417622424,0.27121099,3424.7,3423.6,0.8129]
[1732417622720,0.27121099,3424.6,3423.6,0.8129]
[1732417623020,0.43397479,3424.8,3423.6,0.8129]
[1732417623229,0.27131112,3424.7,3423.6,0.8129]
[1732417623397,2.79305529,3424.9,3423.6,0.8129]
[1732417623724,0.27132701,3424.8,3423.6,0.8129]
[1732417623918,0.27132701,3424.7,3423.6,0.8129]
[1732417624141,3.22702261,3425.3,3423.8,0.7669]
[1732417624281,0.27125091,3425.2,3423.9,0.79609966]
[1732417624478,0.27125091,3425.1,3424.0,0.7669]
[1732417624721,0.27125091,3425.0,3424.2,0.7669]
[1732417624886,3.22704815,3425.7,3424.5,0.7669]
[1732417625090,0.70523074,3425.6,3424.5,0.7669]
[1732417625291,0.27124259,3425.5,3424.6,0.7669]
[1732417625493,0.27124259,3425.4,3424.6,0.7669]
[1732417625795,0.27124259,3425.3,3424.6,0.7669]
[1732417625995,2.79305529,3425.7,3424.6,0.7669]
[1732417626232,0.70514878,3425.6,3424.6,0.7669]
[1732417626538,0.27121107,3425.5,3424.6,0.7669]
[1732417626697,0.27121107,3425.4,3424.8,0.7669]
[1732417627011,3.24507374,3426.3,3424.9,0.7669]
[1732417627215,0.70490251,3426.2,3424.9,0.7669]
[1732417627394,0.27111635,3426.1,3424.9,0.7669]
[1732417627607,0.27111635,3426.0,3424.9,0.7669]
[1732417627902,0.43378616,3426.2,3424.9,0.7669]
[1732417627903,0.27111635,3425.9,3424.9,0.7669]
[1732417628243,0.27111635,3425.8,3424.9,0.7669]
[1732417628442,0.27111635,3425.7,3424.7,1.0583]
[1732417628648,0.27090014,3425.6,3424.8,0.79609297]
[1732417628956,3.22684145,3426.3,3424.8,0.79609297]
[1732417628957,0.4334476,3426.2,3424.8,0.79609297]
[1732417629105,0.27091572,3426.1,3424.8,0.79609297]
[1732417629415,0.27091572,3426.0,3424.8,0.79609297]
[1732417629617,0.27091572,3425.9,3424.8,0.79609297]
[1732417629825,0.27091572,3425.8,3424.8,0.79609297]
[1732417630028,2.79305529,3425.8,3424.8,0.7669]
[1732417630355,0.27088681,3425.7,3424.8,0.7669]
[1732417630499,2.79305529,3425.8,3424.8,0.7669]
[1732417630901,2.79305529,3426.2,3424.9,0.02919351]
[1732417631208,2.79305529,3426.2,3424.4,0.17628769]
[1732417631209,0.27089319,3426.1,3424.8,0.7669]
[1732417631407,0.27089319,3426.0,3425.0,0.7669]
[1732417631608,0.27089319,3425.9,3425.0,0.7669]
[1732417631829,0.27089319,3425.8,3425.0,0.7669]
[1732417632032,0.43343895,3426.1,3425.0,0.7669]
[1732417632233,0.27084837,3426.0,3425.0,0.7669]
[1732417632410,0.27084837,3425.9,3425.0,0.7669]
[1732417632607,0.43343895,3426.1,3425.0,0.7669]
[1732417632943,0.27084525,3426.0,3425.0,0.7669]
[1732417633146,0.43343895,3426.1,3425.0,0.7669]
[1732417633147,0.27084525,3425.9,3425.0,0.7669]
[1732417633449,3.06390054,3425.8,3425.0,0.7669]
[1732417633620,0.27084525,3425.7,3425.0,0.7669]
[1732417633820,0.27084525,3425.6,3425.0,0.7669]
[1732417634009,2.79305529,3425.8,3425.0,0.7669]
[1732417634208,0.27076598,3425.7,3425.0,0.7669]
[1732417634555,0.27076598,3425.6,3425.0,0.7669]
[1732417634851,2.79305529,3425.8,3425.0,0.7669]
[1732417635142,0.27073286,3425.7,3425.0,0.7669]
[1732417635445,0.27073286,3425.6,3425.0,0.7669]
[1732417635658,2.79305529,3425.8,3425.0,0.7669]
[1732417636002,0.27068608,3425.7,3425.0,0.7669]
[1732417636269,2.79305529,3425.8,3425.0,0.7669]
[1732417636448,0.27069965,3425.7,3425.0,0.7669]
[1732417637210,2.79305529,3425.4,3425.0,0.7669]
[1732417637548,0.27069965,3425.3,3424.5,0.82]
[1732417637747,0.27069965,3425.2,3424.5,0.82]
[1732417637909,0.27069965,3425.1,3424.5,0.82]
[1732417638108,0.43312047,3425.3,3424.5,0.82]
[1732417638109,0.27069965,3425.0,3424.5,0.82]
[1732417638310,0.43312047,3425.3,3424.5,0.82]
[1732417638613,0.27070317,3425.2,3424.5,0.82]
[1732417638940,0.43312047,3425.3,3424.5,0.82]
[1732417638941,0.27070317,3425.1,3424.5,0.82]
[1732417639131,0.43312047,3425.3,3424.5,0.82]
[1732417639336,0.27072145,3425.2,3424.5,0.82]
[1732417639647,0.43314462,3425.3,3424.5,0.82]
[1732417639848,0.27071538,3425.2,3424.5,0.82]
[1732417640568,0.27071538,3425.1,3424.5,0.82]
[1732417640742,2.79305529,3425.4,3424.5,0.82]
[1732417640942,0.27071665,3425.3,3424.5,0.82]
[1732417641154,0.27071665,3425.2,3424.5,0.82]
[1732417641356,0.27071665,3425.1,3424.5,0.82]
[1732417641540,2.79305529,3425.4,3424.5,0.82]
[1732417643537,0.4331211,3425.6,3424.5,0.82]
[1732417643872,2.79305529,3425.8,3424.7,0.82]
[1732417644038,2.79305529,3425.8,3424.8,0.82]
[1732417645887,2.79305529,3425.4,3424.8,0.82]
[1732417648336,2.79305529,3425.8,3424.8,0.82]
[1732417648963,3.22633109,3425.8,3424.8,0.82]
[1732417649274,0.4332758,3425.7,3425.0,0.82]
[1732417649637,2.79305529,3425.8,3425.0,0.82]
[1732417649837,0.43337775,3426.1,3425.1,0.02919313]
[1732417650063,0.43337775,3426.1,3425.2,0.82]
[1732417650272,0.43337775,3426.1,3424.4,0.27628769]
[1732417650273,0.43337775,3426.1,3425.4,0.82]
[1732417650473,2.79305529,3426.2,3425.4,0.82]
[1732417652351,2.71155526,3426.2,3425.4,0.82]
[1732417653663,0.27108955,3426.1,3425.4,0.82]
[1732417653988,0.27108955,3426.0,3425.9,0.7637]
[1732417656407,2.71155526,3426.2,3425.9,0.7637]
[1732417656588,0.27106024,3426.1,3425.9,0.7637]
[1732417656793,2.71155526,3426.2,3425.9,0.7637]
[1732417656965,0.27104146,3426.1,3425.9,0.7637]
[1732417657303,2.71155526,3426.2,3425.9,0.7637]
[1732417657506,0.27101052,3426.1,3425.9,0.7637]
[1732417657802,0.27101052,3426.0,3425.8,0.17628769]
[1732417658099,0.27101052,3425.9,3425.8,0.17628769]
[1732417658306,2.71155526,3426.2,3425.8,0.17628769]
[1732417658458,0.27098775,3425.9,3425.8,0.17628769]
[1732417661715,0.27078826,3425.9,3425.8,0.17628769]
[1732417662508,1.09568826,3425.9,3425.8,0.17628769]
[1732417665401,0.8249,3425.9,3425.8,0.17628769]
[1732417665632,1.09564879,3425.9,3425.8,0.17628769]
[1732417668240,0.27074879,3425.9,3425.8,0.17628769]
[1732417669037,2.71155526,3426.2,3425.8,0.17628769]
[1732417669233,0.4332224,3426.1,3425.8,0.17628769]
[1732417669538,0.270764,3426.0,3425.8,0.17628769]
[1732417669740,0.270764,3425.9,3425.8,0.17628769]
[1732417673098,0.270764,3425.9,3425.8,0.93998769]
[1732417676652,1.49495838,3425.9,3425.8,0.93998769]
[1732417679157,1.49495838,3425.9,3425.8,0.17628769]
[1732417679523,1.92848998,3425.9,3425.8,0.17628769]
[1732417680225,1.49495838,3425.9,3425.8,0.17628769]
[1732417680468,1.49510308,3425.9,3425.8,0.17628769]
[1732417680777,0.27110195,3425.9,3425.8,0.17628769]
[1732417684160,0.27110195,3425.9,3425.8,0.96848769]
[1732417686250,0.70486507,3425.9,3425.8,0.96848769]
[1732417687556,0.27110195,3425.9,3425.8,0.96848769]
[1732417690137,0.27143504,3425.9,3425.8,0.96848769]
[1732417690534,1.22400113,3426.0,3425.8,0.96848769]
[1732417690745,0.27138137,3425.9,3425.8,0.96848769]
[1732417693129,1.22400113,3426.2,3425.8,0.96848769]
[1732417693328,0.27144918,3426.1,3425.8,0.96848769]
[1732417693543,1.49545031,3426.0,3425.8,0.96848769]
[1732417693842,1.22400113,3426.0,3425.8,0.96848769]
[1732417695438,1.22400113,3426.2,3425.8,0.96848769]
[1732417695655,0.27141575,3426.1,3425.8,0.96848769]
[1732417695839,1.22400113,3426.2,3425.8,0.96848769]
[1732417695840,0.27141575,3426.0,3425.8,0.96848769]
[1732417696039,1.22400113,3426.2,3425.8,0.96848769]
[1732417696347,0.27141944,3426.1,3425.8,0.96848769]
[1732417696577,1.22400113,3426.2,3425.8,0.96848769]
[1732417696728,0.27139954,3426.1,3425.8,0.96848769]
[1732417696922,1.22400113,3426.2,3425.8,0.96848769]
[1732417697133,0.27139897,3426.1,3425.8,0.96848769]
[1732417697358,1.22400113,3426.2,3425.8,0.96848769]
[1732417697521,0.27141557,3426.1,3425.8,0.96848769]
[1732417697722,0.27141557,3426.0,3425.8,0.96848769]
[1732417697918,1.22400113,3426.2,3425.8,0.96848769]
[1732417698166,0.27143392,3426.1,3425.8,0.96848769]
[1732417698335,0.27143392,3426.0,3425.8,0.96848769]
[1732417698537,1.22400113,3426.2,3425.8,0.96848769]
[1732417698723,0.27145198,3426.1,3425.8,0.96848769]
[1732417698924,0.27145198,3426.0,3425.8,0.9714039]
[1732417699161,1.22400113,3426.2,3425.8,0.9714039]
[1732417699463,0.27146423,3426.1,3425.8,0.9714039]
[1732417699763,1.49546536,3426.0,3425.8,0.9714039]
[1732417699963,0.27146423,3425.9,3425.8,0.1792039]
[1732417703374,1.06186423,3425.9,3425.8,0.1792039]
[1732417703670,1.49616894,3425.9,3425.8,0.1792039]
[1732417704411,2.72048101,3425.9,3425.8,0.1792039]
[1732417704970,2.01471207,3425.9,3425.8,0.1792039]
[1732417705166,2.72010224,3425.9,3425.8,0.1792039]
[1732417706993,3.17205744,3425.9,3425.8,0.1792039]
[1732417707313,2.72010224,3425.9,3425.8,0.1792039]
[1732417709747,2.71006543,3425.9,3425.8,0.1792039]
[1732417714264,1.48575336,3425.9,3425.8,0.1792039]
[1732417714469,2.27597917,3425.9,3425.8,0.1792039]
[1732417714822,2.71006543,3425.9,3425.8,0.1792039]
[1732417716166,2.70881363,3425.9,3425.8,0.1792039]
[1732417720658,2.00467526,3425.9,3425.8,0.1792039]
[1732417720859,2.70883418,3425.9,3425.8,0.1792039]
[1732417724164,2.00467526,3425.9,3425.8,0.1792039]
[1732417724366,2.7091057,3425.9,3425.8,0.1792039]
[1732417724679,0.762,3425.8,3425.6,0.06480429]
[1732417724885,1.94677531,3425.7,3425.6,0.06480429]
[1732417725079,3.14227097,3425.7,3425.6,0.06480429]
[1732417725409,0.762,3425.6,3424.5,0.7924]
[1732417725577,1.22431207,3424.6,3424.5,0.7924]
[1732417727948,1.22431207,3424.6,3423.3,0.7924]
[1732417728104,1.22431207,3424.6,3423.5,0.7924]
[1732417728617,1.22431207,3424.6,3423.6,0.7924]
[1732417730307,1.22431207,3424.6,3423.7,0.7924]
[1732417731650,1.22431207,3424.6,3423.8,0.02920346]
[1732417731950,1.22431207,3424.6,3423.9,0.7924]
[1732417733153,1.22431207,3424.8,3423.9,0.7924]
[1732417733322,1.22431207,3424.8,3424.0,0.02920346]
[1732417733523,0.27118255,3424.7,3424.1,0.8064]
[1732417733850,1.22431207,3424.8,3424.1,0.8064]
[1732417735702,1.22431207,3424.8,3424.2,0.02920101]
[1732417736003,1.22431207,3425.0,3424.3,0.8064]
[1732417736210,0.27117967,3424.9,3424.3,0.8064]
[1732417736387,1.22431207,3425.0,3424.3,0.8064]
[1732417736559,1.22431207,3425.2,3424.3,0.8064]
[1732417736758,0.27124548,3425.1,3424.3,0.8064]
[1732417736962,0.2712604,3425.0,3424.3,0.8064]
[1732417737190,1.22431207,3425.2,3424.3,0.8064]
[1732417737504,0.27126805,3425.1,3424.3,0.8064]
[1732417737802,0.27126104,3425.0,3424.3,0.8064]
[1732417738009,1.22431207,3425.2,3424.3,0.8064]
[1732417738219,0.27125444,3425.1,3424.3,0.8064]
[1732417738373,1.22431207,3425.2,3424.3,0.8064]
[1732417738572,0.27126525,3425.1,3424.3,0.8064]
[1732417738801,0.27126525,3425.0,3424.3,0.8064]
[1732417739020,1.22431207,3425.2,3424.3,0.8064]
[1732417739173,0.27124468,3425.1,3424.3,0.8064]
[1732417739373,1.65786145,3425.4,3424.3,0.8064]
[1732417739608,0.27124098,3425.3,3424.3,0.8064]
[1732417739821,0.27124098,3425.2,3424.3,0.8064]
[1732417739989,0.27124098,3425.1,3424.3,0.8064]
[1732417740191,1.65786145,3425.4,3424.3,0.8064]
[1732417740392,0.27123977,3425.3,3424.0,0.8064]
[1732417740694,0.43354938,3425.4,3424.5,1.22431207]
[1732417740887,0.43354938,3425.4,3424.6,0.83559424]
[1732417741089,0.43354938,3425.4,3424.7,1.01239063]
[1732417741292,0.43354938,3425.4,3424.8,0.83559424]
[1732417742903,0.43354938,3425.4,3424.8,0.8064]
[1732417743217,0.43354938,3425.4,3424.8,0.83559187]
[1732417743711,0.43354938,3425.4,3424.8,0.8064]
[1732417745393,1.22431207,3425.8,3424.8,0.8064]
[1732417745598,0.2709489,3425.7,3424.8,0.8064]
[1732417745817,1.22431207,3425.8,3424.8,0.8064]
[1732417746012,0.27094323,3425.7,3424.8,0.8064]
[1732417746216,0.43362827,3426.4,3425.0,0.8064]
[1732417746406,1.49521668,3426.1,3425.0,0.8064]
[1732417746607,0.27090461,3426.0,3425.0,0.8064]
[1732417746828,1.49521668,3425.9,3425.0,0.8064]
[1732417747011,0.43362827,3426.5,3425.0,0.8064]
[1732417747012,1.22431207,3425.7,3425.0,0.8064]
[1732417750593,0.45182188,3426.7,3425.0,0.8064]
[1732417750930,1.22431207,3425.8,3425.1,0.02919161]
[1732417751113,0.8261,3426.4,3425.1,0.8064]
[1732417751285,1.22431207,3425.9,3425.1,0.8064]
[1732417751685,1.22431207,3425.7,3425.1,0.8064]
[1732417760260,1.22431207,3425.4,3425.1,0.8064]
[1732417760429,1.22431207,3425.4,3424.4,0.28003479]
[1732417760622,1.22431207,3425.4,3424.5,0.7877]
[1732417760958,1.22431207,3425.2,3424.5,0.7877]
[1732417764723,0.58743807,3425.2,3424.5,0.7877]
[1732417765051,1.22431207,3425.1,3424.5,0.7877]
[1732417784133,1.20722798,3425.1,3424.5,0.7877]
[1732417787399,0.43357606,3425.9,3424.6,0.82289771]
[1732417787709,1.4954332,3425.8,3424.8,0.7937]
[1732417788024,0.27112113,3425.7,3424.8,0.82289287]
[1732417788225,1.22431207,3425.8,3424.8,0.82289287]
[1732417788425,0.2711084,3425.7,3424.8,0.82289287]
[1732417788642,1.22431207,3425.8,3424.8,0.82289287]
[1732417788943,0.27111,3425.7,3424.8,0.82289287]
[1732417789229,1.22431207,3425.8,3424.8,0.82289287]
[1732417789541,1.22431207,3425.8,3424.8,0.67846514]
[1732417789829,1.22431207,3425.8,3424.9,0.82289172]
[1732417790133,1.22431207,3425.8,3425.0,0.9409164]
[1732417790303,1.22431207,3425.8,3425.2,0.7937]
[1732417791275,1.22431207,3425.8,3425.2,0.82289213]
[1732417792419,1.22431207,3425.8,3425.2,0.7937]
[1732417799858,2.00531207,3426.7,3425.4,0.7973]
[1732417800055,0.27083574,3426.6,3425.4,0.7973]
[1732417800294,0.27083574,3426.5,3425.4,0.7973]
[1732417800510,1.49514781,3426.4,3425.3,0.38756358]
[1732417800679,1.22431207,3426.4,3425.4,0.7973]
[1732417800893,1.22431207,3426.1,3425.4,0.7973]
[1732417801072,1.22431207,3425.8,3425.4,0.7973]
[1732417803399,1.22431207,3425.5,3425.0,0.9445164]
[1732417806005,1.22431207,3425.5,3425.0,0.7973]
[1732417807103,0.781,3425.7,3425.0,0.7973]
[1732417807409,1.22431207,3425.5,3424.3,0.7973]
[1732417808949,1.21422776,3425.7,3424.3,0.7973]
[1732417809149,1.22431207,3425.5,3424.3,0.7973]
[1732417809454,1.22431207,3425.5,3424.5,0.7973]
[1732417809989,1.22431207,3425.2,3424.5,0.7973]
[1732417811963,2.00531207,3425.2,3424.5,0.7973]
[1732417812171,1.22431207,3424.9,3423.9,0.7973]
[1732417817861,1.22431207,3424.9,3424.1,0.7702]
[1732417818962,0.8295,3425.4,3424.1,0.7702]
[1732417819168,1.22431207,3425.4,3424.3,0.74937604]
[1732417820608,1.22431207,3425.4,3424.2,0.02920071]
[1732417820830,1.22431207,3425.4,3424.1,0.0291965]
[1732417821014,1.22431207,3425.4,3424.2,0.17055972]
[1732417821186,1.22431207,3425.2,3424.2,0.17055972]
[1732417821386,1.22431207,3425.2,3424.2,0.02919653]
[1732417821680,1.22431207,3425.2,3424.0,0.48128514]
[1732417822225,1.22431207,3425.0,3424.1,0.7702]
[1732417822527,1.22431207,3425.0,3424.3,0.7702]
[1732417822709,0.8295,3425.7,3424.3,0.7702]
[1732417822907,1.22431207,3425.3,3424.3,0.7702]
[1732417824127,1.22431207,3425.0,3424.3,0.7702]
[1732417825127,1.22431207,3425.3,3424.4,0.8016982]
[1732417825633,1.22431207,3425.6,3424.4,0.8016982]
[1732417826134,1.22431207,3425.6,3424.4,1.16007047]
[1732417826285,1.22431207,3425.6,3424.6,0.7725]
[1732417826493,1.22431207,3425.6,3424.8,0.7725]
[1732417827698,1.22431207,3425.9,3424.8,0.7725]
[1732417827896,0.27069771,3425.8,3424.8,0.7725]
[1732417828125,1.22431207,3425.9,3424.8,0.7725]
[1732417828354,1.22431207,3425.9,3424.9,0.80169443]
[1732417829998,1.22431207,3425.9,3424.9,0.7725]
[1732417830640,1.22431207,3425.7,3424.7,0.7725]
[1732417832702,1.22431207,3425.7,3424.8,0.02919452]
[1732417832943,1.22431207,3425.7,3424.9,0.7725]
[1732417836035,0.85431207,3425.7,3424.9,0.7725]
[1732417836231,0.7554,3426.5,3425.0,0.02919459]
[1732417836419,1.22431207,3425.9,3425.1,0.8179]
[1732417836622,1.22431207,3425.9,3425.3,0.8179]
[1732417839608,1.22431207,3425.7,3425.3,0.8179]
[1732417841112,1.22431207,3425.5,3425.3,0.8179]
[1732417841823,1.22431207,3425.5,3424.6,0.8179]
[1732417842008,1.22431207,3425.2,3424.6,0.8179]
[1732417842854,1.22431207,3425.1,3424.6,0.8179]
[1732417846651,1.22431207,3425.3,3424.6,0.8179]
[1732417847036,1.22431207,3425.3,3424.7,0.8179]
[1732417847234,1.22431207,3425.3,3424.8,0.16358]
[1732417847681,1.22431207,3425.3,3424.9,0.8179]
[1732417850271,0.7554,3425.8,3424.9,0.8179]
[1732417850578,1.22431207,3425.5,3424.9,0.8179]
[1732417851158,1.22431207,3425.2,3424.9,0.8179]
[1732417854910,1.22431207,3425.2,3424.2,0.7835]
[1732417855114,1.22431207,3425.2,3424.3,0.7835]
[1732417855678,0.8261,3425.3,3424.3,0.7835]
[1732417855679,1.22431207,3424.9,3424.3,0.7835]
[1732417856010,1.22431207,3424.5,3423.8,0.7835]
[1732417856311,0.8261,3424.8,3423.8,0.7835]
[1732417856473,1.22431207,3424.5,3423.8,1.14187227]
[1732417860673,1.22431207,3424.7,3423.9,0.81270271]
[1732417860869,1.22431207,3424.7,3423.9,1.17107498]
[1732417861106,1.22431207,3424.7,3424.0,0.7835]
[1732417861774,1.22431207,3425.0,3424.0,1.14187227]
[1732417862078,1.22431207,3425.2,3424.2,0.7835]
[1732417862271,1.22431207,3425.2,3424.3,0.02919768]
[1732417862505,1.22431207,3425.2,3424.3,0.7835]
[1732417862878,1.22431207,3425.0,3424.3,0.7835]
[1732417864117,1.22431207,3425.0,3424.9,0.03610961]
[1732417867408,1.22431207,3425.2,3424.9,0.03610961]
[1732417874822,0.7736,3425.8,3424.9,0.03610961]
[1732417875167,1.22431207,3425.6,3425.0,0.7843]
[1732417875452,0.2703623,3425.5,3425.0,0.7843]
[1732417875657,1.22431207,3425.6,3425.0,0.7843]
[1732417875860,0.27032838,3425.5,3425.0,0.7843]
[1732417876066,1.22431207,3425.6,3425.0,0.7843]
[1732417876219,0.27029324,3425.5,3425.0,0.7843]
[1732417876420,1.22431207,3425.6,3425.0,0.7843]
[1732417876760,0.27025583,3425.5,3425.0,0.7843]
[1732417876920,1.22431207,3425.6,3425.0,0.7843]
[1732417877123,0.27021468,3425.5,3425.0,0.7843]
[1732417877351,1.22431207,3425.6,3425.0,0.7843]
[1732417877659,0.27020079,3425.5,3425.0,0.7843]
[1732417877822,1.22431207,3425.6,3425.0,0.7843]
[1732417878022,0.27019135,3425.5,3425.0,0.7843]
[1732417878361,1.22431207,3425.6,3425.0,0.7843]
[1732417878526,0.27018953,3425.5,3425.0,0.7843]
[1732417878864,1.22431207,3425.6,3425.0,0.7843]
[1732417880838,0.2701722,3425.5,3425.0,0.7843]
[1732417881179,1.22431207,3425.6,3425.0,0.7843]
[1732417881382,0.27022347,3425.5,3425.0,0.7843]
[1732417881541,1.22431207,3425.3,3425.0,0.7843]
[1732417881878,1.22431207,3425.3,3424.9,0.03610961]
[1732417890058,0.7736,3425.7,3424.9,0.03610961]
[1732417890059,1.22431207,3425.4,3424.9,0.03610961]
[1732417891479,0.27050349,3425.3,3424.9,0.03610961]
[1732417891805,1.22431207,3425.4,3424.9,0.03610961]
[1732417891988,0.27052198,3425.3,3424.9,0.03610961]
[1732417892191,1.22431207,3425.4,3425.0,0.7843]
[1732417892602,0.27052834,3425.3,3425.0,0.7843]
[1732417892762,1.22431207,3425.4,3425.0,0.7843]
[1732417896403,0.27067534,3425.3,3425.0,0.7843]
[1732417896578,1.22431207,3425.4,3425.0,0.7843]
[1732417896766,0.27066723,3425.3,3425.0,0.7843]
[1732417897123,1.22431207,3425.4,3425.0,0.7843]
[1732417897321,0.27068189,3425.3,3425.0,0.7843]
[1732417897466,1.22431207,3425.1,3425.0,0.7843]
[1732417898501,0.4330453,3425.8,3425.0,0.7843]
[1732417898502,1.22431207,3425.4,3425.0,0.7843]
[1732417898682,0.2706412,3425.3,3425.0,0.7843]
[1732417898865,1.22431207,3425.4,3425.0,0.7843]
[1732417899061,0.27064109,3425.3,3425.0,0.7843]
[1732417899300,1.22431207,3425.4,3425.0,0.7843]
[1732417899502,0.27067963,3425.3,3425.0,0.7843]
[1732417899813,1.22418154,3425.3,3425.0,0.7843]
[1732417900303,0.27068186,3425.2,3425.0,0.7843]
[1732417900669,1.22418154,3425.3,3425.0,0.7843]
[1732417901019,0.2626754,3425.2,3425.0,0.7843]
[1732417901167,1.22418154,3425.3,3425.0,0.7843]
[1732417909430,1.21205151,3425.3,3425.0,0.7843]
[1732417913008,0.27073272,3425.2,3425.0,0.7843]
[1732417913207,0.2707475,3425.1,3425.0,0.7843]
[1732417914002,1.21205151,3425.3,3425.0,0.7843]
[1732417914245,0.27071939,3425.2,3425.0,0.7843]
[1732417914447,1.21205151,3425.3,3425.0,0.7843]
[1732417914651,0.27071965,3425.2,3424.9,0.03610961]
[1732417914948,1.22418154,3425.0,3424.9,0.03610961]
[1732417919320,2.44836308,3425.0,3424.9,0.03610961]
[1732417919518,3.47798297,3425.0,3424.9,0.03610961]
[1732417919850,3.91107982,3425.0,3424.9,0.03610961]
[1732417921004,0.759,3424.9,3423.6,0.8253]
[1732417921244,0.759,3424.7,3423.6,0.8253]
[1732417921553,0.759,3424.5,3423.6,0.8253]
[1732417921872,0.27061989,3424.4,3423.6,0.8253]
[1732417922079,1.22418154,3423.7,3423.6,0.8253]
[1732417922266,1.22418141,3423.7,3423.6,0.8253]
[1732417927646,1.22418154,3424.1,3423.6,0.8253]
[1732417929706,1.22501194,3424.2,3423.6,0.8253]
[1732417931471,0.8154,3424.1,3423.3,0.8292]
[1732417931968,1.22501194,3423.9,3423.3,0.8292]
[1732417932458,0.8154,3424.1,3423.3,0.8292]
[1732417932459,1.22501194,3423.7,3423.3,0.8292]
[1732417934134,1.22501194,3423.9,3423.3,0.8292]
[1732417934692,0.8154,3424.1,3423.3,0.8292]
[1732417934976,1.22501194,3424.0,3423.3,1.18757227]
[1732417935160,0.8154,3424.1,3423.4,0.51296672]
[1732417936234,0.43087128,3424.9,3423.5,0.8287]